Cogmind - Beta 11.1 @@@ ROGUE MODE // 2022.10.05 @ 18:48:21 Player: Flerik Result: Destroyed by S-43 Plague with Heavy Machine Gun Performance ------------- Evolutions (7) 3500 Regions Visited (21) 4200 Robots Destroyed (22) 110 Value Destroyed (584) 584 Prototype IDs (30) 600 Alien Tech Used (0) 0 Bonus (1437) 1437 TOTAL SCORE: 10431 Bonus ------- Follower Combat Kills 137 Met Data Miner 300 Met Warlord at Base 500 MAIN.C Attacked Warlord 500 Cogmind --------- Core Integrity 0/1300 Matter 271/300 Energy 98/100 System Corruption 0% Temperature Cool (0) Movement Core (50) Location -3/Research Parts ------- > --- POWER (2) -------- (None) > --- PROPULSION (5) --- (None) > --- UTILITY (12) ----- Enhanced Optical Array Advanced Signal Interpreter Improved System Shield Advanced System Shield > --- WEAPON (2) ------- Power Sword > --- INVENTORY (5) ---- Vortex Rail (40) Peak State ------------ > --- POWER ------------ Vortex Chain Reactor > --- PROPULSION ------- Biomechanical Wings Biomechanical Wings Biomechanical Wings Cooled Impulse Thruster Cooled Impulse Thruster > --- UTILITY ---------- Small Storage Unit Structural Scanner Enhanced Optical Array Advanced Signal Interpreter Advanced Target Analyzer Hacking Suite Hacking Suite System Shield Improved System Shield Advanced System Shield > --- WEAPON ----------- (None) > --- INVENTORY -------- Advanced Sensor Array Transmission Jammer Improved Transmission Jammer Vortex Rail Heavy Rocket Launcher Shock Maul Power Sword [Rating: 98] Favorites ----------- Power Light Nuclear Core Engine Ion Engine Power Core Light Nuclear Core Reactor Vortex Chain Reactor Propulsion Cesium-ion Thruster Leg Aluminum Leg Flight Unit Cesium-ion Thruster Utility Small Storage Unit Device Structural Scanner Storage Small Storage Unit Processor Signal Interpreter Hackware Hacking Suite Weapon Makeshift Axe Energy Gun EM Pulse Gun Ballistic Gun Heavy Assault Rifle Launcher Rocket Launcher Impact Weapon Shock Maul Slashing Weapon Makeshift Axe Build | -11 -10 -10 -9 -8 -7 -7 -7 -7 -6 -6 -6 -6 -6 -6 -5 -4 -4 -4 -4 -3 -3 ------- Run | Scr Mat Min Mat Mat Fac Low Low Dat Pro Fac Ext Cet Arc Hub Fac Fac Upp Upp War Pro Res Slots Evolved 14 | . . . 2 2 2 . . . . 2 . . . . 2 2 . . . . 2 Power 1 | . . . . . . . . . . . . . . . . 1 . . . . . Propulsion 3 | . . . 1 1 . . . . . 1 . . . . . . . . . . . Utility 10 | . . . 1 1 2 . . . . 1 . . . . 2 1 . . . . 2 Weapon . | . . . . . . . . . . . . . . . . . . . . . . Parts Attached 90 | 6 4 1 11 9 5 2 . . . 6 6 . . 6 9 3 . 4 7 3 8 Power 12 | 1 1 . 2 1 1 . . . . . 1 . . 1 2 . . . 1 . 1 Engine 6 | 1 1 . 2 1 . . . . . . . . . . 1 . . . . . . Core 4 | . . . . . 1 . . . . . 1 . . 1 1 . . . . . . Reactor 2 | . . . . . . . . . . . . . . . . . . . 1 . 1 Propulsion 34 | 2 1 . 6 3 1 1 . . . 3 4 . . 3 2 2 . . 4 . 2 Treads . | . . . . . . . . . . . . . . . . . . . . . . Leg 6 | 2 1 . 3 . . . . . . . . . . . . . . . . . . Wheel . | . . . . . . . . . . . . . . . . . . . . . . Hover . | . . . . . . . . . . . . . . . . . . . . . . Flight 28 | . . . 3 3 1 1 . . . 3 4 . . 3 2 2 . . 4 . 2 Utility 28 | 1 1 . 2 3 3 . . . . 3 1 . . 1 4 1 . 3 1 3 1 Device 11 | . 1 . 2 . 2 . . . . 1 . . . 1 1 1 . . . 1 1 Storage 3 | 1 . . . 2 . . . . . . . . . . . . . . . . . Processor 7 | . . . . 1 1 . . . . . . . . . 1 . . 2 . 2 . Hackware 7 | . . . . . . . . . . 2 1 . . . 2 . . 1 1 . . Protection . | . . . . . . . . . . . . . . . . . . . . . . Artifact . | . . . . . . . . . . . . . . . . . . . . . . Weapon 16 | 2 1 1 1 2 . 1 . . . . . . . 1 1 . . 1 1 . 4 Energy Gun 4 | 1 . 1 . 1 . . . . . . . . . . . . . . 1 . . Energy Cannon . | . . . . . . . . . . . . . . . . . . . . . . Ballistic Gun 3 | 1 1 . 1 . . . . . . . . . . . . . . . . . . Ballistic Cannon . | . . . . . . . . . . . . . . . . . . . . . . Launcher 5 | . . . . 1 . . . . . . . . . . 1 . . 1 . . 2 Special Weapon . | . . . . . . . . . . . . . . . . . . . . . . Impact Weapon 1 | . . . . . . . . . . . . . . 1 . . . . . . . Slashing Weapon 3 | . . . . . . 1 . . . . . . . . . . . . . . 2 Piercing Weapon . | . . . . . . . . . . . . . . . . . . . . . . Special Melee Weapon . | . . . . . . . . . . . . . . . . . . . . . . Unidentified Prototypes 7 | . . . . 1 . . . . . . . . . 1 . . . . 4 1 . Corrupted Parts 3 | . . . . . . . . . . . 3 . . . . . . . . . . System Corruption 4 | . . . . . . . . . . . 4 . . . . . . . . . . Parts Lost 43 | . 2 2 1 3 . 1 . . . . 7 . 1 3 4 . 1 1 3 5 9 Power 4 | . . . . 1 . . . . . . 1 . 1 1 . . . . . . . Propulsion 20 | . . 1 1 1 . 1 . . . . 4 . . 2 2 . 1 1 . 3 3 Utility 15 | . . 1 . 1 . . . . . . 2 . . . 1 . . . 3 2 5 Weapon 4 | . 2 . . . . . . . . . . . . . 1 . . . . . 1 Highest Loss Streak 9 | . 1 1 1 3 . 1 . . . . 6 . 1 3 2 . 1 1 3 8 9 To Critical Strikes 1 | . . . . . . . . . . . 1 . . . . . . . . . . Average Slot Usage (%) 79 | . 91 74 71 90 87 99 100 100 100 92 67 86 84 92 87 69 72 61 67 45 33 Engine 3 | . 14 14 11 8 . . . . . . . . . . . 5 5 1 . . . Core 2 | . . . . . 5 7 7 7 7 6 2 6 4 6 4 . . . . . . Leg 4 | . 28 14 19 . . . . . . . . . . . . . . . . . . Flight 18 | . . . 3 36 30 30 30 30 30 33 20 33 33 32 22 17 19 11 15 8 2 Device 10 | . 7 2 5 17 21 23 23 23 23 20 1 . . 6 10 15 15 8 5 . . Storage 6 | . 14 14 11 9 7 7 7 7 7 6 6 6 6 6 5 5 5 5 5 . . Processor 9 | . . . . 9 14 15 15 15 15 13 13 13 13 13 5 5 5 10 13 10 10 Hackware 11 | . . . . . . . . . . 5 14 20 20 20 26 21 21 21 27 26 18 Energy Gun 1 | . 3 13 10 . . . . . . . . . . . . . . . . . . Ballistic Gun 4 | . 22 14 11 9 7 7 7 7 7 . . . . . . . . . . . . Slashing Weapon 2 | . . . . . . 6 7 7 7 6 6 6 6 1 . . . . . . 1 Naked Turns . | . . . . . . . . . . . . . . . . . . . . . . Heaviest Build 41 | 14 15 15 19 17 16 19 19 19 19 19 15 13 13 14 20 18 18 18 41 . 7 Greatest Support 38 | 20 20 20 36 20 19 19 19 19 19 22 22 25 25 31 32 25 25 18 38 25 13 Greatest Overweight (x) 3 | . . 1 1 . . . . . . . 2 . . . 1 . . . 3 . . Average Overweight (x) . | . . . . . . . . . . . . . . . . . . . . . . Largest Inventory Capacity 8 | 8 8 8 8 8 8 8 8 8 8 8 8 8 8 8 8 8 8 8 8 5 5 Average Capacity 7 | 6 8 8 8 8 8 8 8 8 8 8 8 8 8 8 8 8 8 8 7 5 5 Most Carried 8 | 2 8 8 8 8 8 8 8 7 7 8 8 8 8 8 8 8 6 7 8 4 3 Average Carried 6 | 1 3 7 7 7 5 7 7 7 7 7 7 8 8 7 7 6 6 6 7 3 2 Final Capacity 8 | 8 8 8 8 8 8 8 8 8 8 8 8 8 8 8 8 8 8 8 5 5 5 Final Carried 8 | 2 8 8 8 8 6 7 7 7 7 8 8 8 8 8 8 6 6 7 5 3 1 Class Distribution -------------------- 22% | Hacker-Sprinter 20% | Mutant 19% | Scout 18% | Hacker-Mutant 8% | Wizard-Mutant 5% | Hacker-Scout 4% | Infiltrator-Ninja Dominant Class ---------------- Mutant | -10/Materials Mutant | -10/Mines Mutant | -9/Materials Scout | -8/Materials Scout | -7/Factory Scout | -7/Lower Caves Scout | -7/Lower Caves Scout | -7/Data Miner Scout | -6/Proximity Caves Hacker-Sprinter | -6/Factory Hacker-Mutant | -6/Extension Hacker-Sprinter | -6/Cetus Hacker-Sprinter | -6/Archives Hacker-Sprinter | -6/Hub_04(d) Hacker-Sprinter | -5/Factory Hacker-Sprinter | -4/Factory Hacker-Scout | -4/Upper Caves Hacker-Mutant | -4/Upper Caves Hacker-Mutant | -4/Warlord Wizard-Mutant | -3/Proximity Caves Wizard-Mutant | -3/Research Resources | -11 -10 -10 -9 -8 -7 -7 -7 -7 -6 -6 -6 -6 -6 -6 -5 -4 -4 -4 -4 -3 -3 ----------- Run | Scr Mat Min Mat Mat Fac Low Low Dat Pro Fac Ext Cet Arc Hub Fac Fac Upp Upp War Pro Res Matter Collected 1056 | 211 88 117 . 53 . 121 90 . 27 . 85 . . 30 67 . . 17 53 60 37 Remotely . | . . . . . . . . . . . . . . . . . . . . . . Salvage Created 1008 | . 88 168 60 21 . 17 65 . 63 104 107 . 30 102 79 . . . . . 104 Parts 54 | . 2 6 4 7 . 1 6 . 1 3 11 . . . 2 . . . . . 11 Haulers Intercepted 3 | . . . . . . . . . . 1 . . . 1 1 . . . . . . Recyclers Shooed 1 | . . . . . . . . . . . 1 . . . . . . . . . . Parts Field Recycled . | . . . . . . . . . . . . . . . . . . . . . . Retrieved Matter . | . . . . . . . . . . . . . . . . . . . . . . Parts Self-Destructed 11 | . . . . . . . . . 11 . . . . . . . . . . . . Prevented 1 | . . . . . . . . . 1 . . . . . . . . . . . . Kills | -11 -10 -10 -9 -8 -7 -7 -7 -7 -6 -6 -6 -6 -6 -6 -5 -4 -4 -4 -4 -3 -3 ------- Run | Scr Mat Min Mat Mat Fac Low Low Dat Pro Fac Ext Cet Arc Hub Fac Fac Upp Upp War Pro Res Combat Hostiles Destroyed 14 | . 2 3 1 3 . . . . . . 1 . . . . . . . . . 4 Melee 1 | . . . . . . . . . . . 1 . . . . . . . . . . Guns 6 | . 2 3 1 . . . . . . . . . . . . . . . . . . AOE 7 | . . . . 3 . . . . . . . . . . . . . . . . 4 Classes Destroyed 10 | . 1 1 1 2 . 1 1 . . 1 2 . . . . . . . . . . Worker 1 | . . . . . . . . . . . . . . . . . . . . . 1 Builder 2 | . . . . . . . . . . . 1 . . . . . . . . . 1 Tunneler 1 | . . . . 1 . . . . . . . . . . . . . . . . . Hauler 3 | . . . . . . . . . . 1 . . . 1 1 . . . . . . Operator 2 | . . . . . . . . . . . 1 . 1 . . . . . . . . Swarmer 7 | . . . . 3 . . . . . . . . . . . . . . . . 4 Grunt 4 | . 2 2 . . . . . . . . . . . . . . . . . . . Sentry 2 | . . . 1 . . . . . . . 1 . . . . . . . . . . Decomposer 2 | . . . . . . 1 1 . . . . . . . . . . . . . . Samaritan 1 | . . . . . . . 1 . . . . . . . . . . . . . . Assembled 1 | . . 1 . . . . . . . . . . . . . . . . . . . Best Kill Streak 4 | . 1 2 1 4 . . . . . 1 1 . 1 1 1 . . . . . 4 Combat Bots Only 3 | . 1 2 1 3 . . . . . . 1 . . . . . . . . . 3 Max Kills in Single Turn 4 | . 1 1 1 3 . 1 1 . . 1 1 . 1 1 1 . . . . . 4 Gunslinging . | . . . . . . . . . . . . . . . . . . . . . . Exploded 3 | . . . . 2 . . . . . . . . . . . . . . . . 3 Melee 1 | . . . . . . . . . . . 1 . . . . . . . . . . Uniques/NPCs Destroyed . | . . . . . . . . . . . . . . . . . . . . . . Combat | -11 -10 -10 -9 -8 -7 -7 -7 -7 -6 -6 -6 -6 -6 -6 -5 -4 -4 -4 -4 -3 -3 -------- Run | Scr Mat Min Mat Mat Fac Low Low Dat Pro Fac Ext Cet Arc Hub Fac Fac Upp Upp War Pro Res Damage Taken 5097 | . 526 276 144 319 34 10 . . . 58 361 27 120 129 543 31 82 165 277 279 1716 Core 2435 | . 79 109 26 67 11 . . . . 22 120 . 50 27 170 31 58 101 128 132 1304 Absorbed by Shields 60 | . . . . . . . . . . . 60 . . . . . . . . . . Regen/Repaired (Parts) 18 | . . . . . . . . . . 18 . . . . . . . . . . . Core Remaining (%) 77 | 100 . 24 93 87 . . . . 98 . . . . 74 83 . . . . 60 . Volleys Fired 54 | . 19 25 3 2 3 . . . . . . . . . . . . . . . 2 Largest 2 | . 2 2 2 2 1 . . . . . . . . . . . . . . . 1 Hottest 63 | . 60 60 63 56 23 . . . . . . . . . . . . . . . 39 Shots Fired 87 | . 33 39 6 4 3 . . . . . . . . . . . . . . . 2 Gun 83 | . 33 39 6 2 3 . . . . . . . . . . . . . . . . Cannon . | . . . . . . . . . . . . . . . . . . . . . . Launcher 4 | . . . . 2 . . . . . . . . . . . . . . . . 2 Special . | . . . . . . . . . . . . . . . . . . . . . . Kinetic 50 | . 26 16 3 2 3 . . . . . . . . . . . . . . . . Thermal . | . . . . . . . . . . . . . . . . . . . . . . Explosive 4 | . . . . 2 . . . . . . . . . . . . . . . . 2 Electromagnetic 33 | . 7 23 3 . . . . . . . . . . . . . . . . . . Robot Hit Streak 6 | . 6 4 3 1 1 . . . . . . . . . . . . . . . 2 Robot Miss Streak 5 | . 5 2 2 3 2 . . . . . . . . . . . . . . . 1 Penetration Max . | . . . . . . . . . . . . . . . . . . . . . . Secondary Targets . | . . . . . . . . . . . . . . . . . . . . . . Shots Hit Robots 71 | . 17 23 3 1 1 2 3 . 1 6 7 . 1 3 1 . . . . . 2 Core Hits 41 | . 5 13 2 3 . 1 1 . 1 1 4 . 1 . . . . . . . 9 Critical Kills . | . . . . . . . . . . . . . . . . . . . . . . Critical Parts Destroyed 1 | . . . . . . . . . . . . . . 1 . . . . . . . Critical Strikes 2 | . . 1 . . . . . . . . . . . 1 . . . . . . . Corrupt 1 | . . 1 . . . . . . . . . . . . . . . . . . . Smash 1 | . . . . . . . . . . . . . . 1 . . . . . . . Melee Attacks 32 | . . . . . . 3 3 . 1 8 8 . 1 4 1 . . . . . 3 Impact 5 | . . . . . . . . . . . . . . 4 1 . . . . . . Slashing 27 | . . . . . . 3 3 . 1 8 8 . 1 . . . . . . . 3 Piercing . | . . . . . . . . . . . . . . . . . . . . . . Sneak Attacks 14 | . . . . . . 1 3 . . 2 4 . 1 1 1 . . . . . 1 Combat Hostiles 1 | . . . . . . . . . . . 1 . . . . . . . . . . Follow-up Attacks . | . . . . . . . . . . . . . . . . . . . . . . Damage Inflicted 3037 | . 225 296 38 202 19 106 249 . 87 344 464 . 97 193 90 . . . . . 627 Guns 578 | . 225 296 38 . 19 . . . . . . . . . . . . . . . . Cannons . | . . . . . . . . . . . . . . . . . . . . . . Explosions 738 | . . . . 202 . . . . . . . . . . . . . . . . 536 Melee 1693 | . . . . . . 106 249 . 87 344 464 . 97 193 79 . . . . . 74 Ramming 28 | . . . . . . . . . . . . . . . 11 . . . . . 17 Kinetic 367 | . 186 144 18 . 19 . . . . . . . . . . . . . . . . Thermal . | . . . . . . . . . . . . . . . . . . . . . . Explosive 738 | . . . . 202 . . . . . . . . . . . . . . . . 536 Electromagnetic 211 | . 39 152 20 . . . . . . . . . . . . . . . . . . Impact 272 | . . . . . . . . . . . . . . 193 79 . . . . . . Slashing 1421 | . . . . . . 106 249 . 87 344 464 . 97 . . . . . . . 74 Piercing . | . . . . . . . . . . . . . . . . . . . . . . Highest Corruption 7 | . . . . . . . . . . . 4 4 4 4 4 . . . 6 7 . Average Corruption 4 | . . . . . . . . . . . 3 4 4 4 3 . . . 6 6 . Corruption Purged . | . . . . . . . . . . . . . . . . . . . . . . Corruption Blocked . | . . . . . . . . . . . . . . . . . . . . . . Effects 10 | . . . . . . . . . . . . 1 1 3 1 . . . . 4 . Message Errors 6 | . . . . . . . . . . . . . 1 2 1 . . . . 2 . Matter Fused 2 | . . . . . . . . . . . . . . . . . . . . 2 . Heat Flow Errors 1 | . . . . . . . . . . . . . . 1 . . . . . . . Data Loss (major) 1 | . . . . . . . . . . . . 1 . . . . . . . . . Overload Shots . | . . . . . . . . . . . . . . . . . . . . . . Overflow Damage 392 | . . . . 17 . 11 150 . . . 28 . . 75 55 . . . . . 56 Projectiles . | . . . . . . . . . . . . . . . . . . . . . . Explosions 39 | . . . . 17 . . . . . . . . . . . . . . . . 22 Melee 353 | . . . . . . 11 150 . . . 28 . . 75 55 . . . . . 34 Knockbacks . | . . . . . . . . . . . . . . . . . . . . . . Impact . | . . . . . . . . . . . . . . . . . . . . . . Kinetic . | . . . . . . . . . . . . . . . . . . . . . . Secondary . | . . . . . . . . . . . . . . . . . . . . . . Self-Inflicted Damage 50 | . . . . 38 . . . . . . . . . . 5 . . . . . 7 Shots 1 | . . . . 1 . . . . . . . . . . . . . . . . . Rammed 7 | . . . . . . . . . . . . . . . 3 . . . . . 4 Targets Rammed 7 | . . . . . . . . . . . . . . . 3 . . . . . 4 Kicked . | . . . . . . . . . . . . . . . . . . . . . . Crushed . | . . . . . . . . . . . . . . . . . . . . . . Highest Temperature 106 | . 66 1 11 39 . . . . . 4 4 6 3 106 . . . . 2 . . Average Temperature 26 | . 24 1 7 17 . . . . . 4 4 6 3 48 . . . . 2 . . Received Heat Transfer 1082 | . 291 108 27 90 12 20 . . . 24 68 . 18 42 54 . 9 75 111 27 106 Siege Activations . | . . . . . . . . . . . . . . . . . . . . . . Robots Corrupted . | . . . . . . . . . . . . . . . . . . . . . . Combat Hostiles . | . . . . . . . . . . . . . . . . . . . . . . Parts Fried . | . . . . . . . . . . . . . . . . . . . . . . Impact Corruptions 5 | . . . . . . . . . . . . . . 3 2 . . . . . . Robots Melted . | . . . . . . . . . . . . . . . . . . . . . . Combat Hostiles . | . . . . . . . . . . . . . . . . . . . . . . Parts Melted . | . . . . . . . . . . . . . . . . . . . . . . Heat Transferred . | . . . . . . . . . . . . . . . . . . . . . . Parts Sabotaged 2 | . . . . . . . . . . . . . . . . . . . 2 . . Parts Stolen . | . . . . . . . . . . . . . . . . . . . . . . Parts Stripped . | . . . . . . . . . . . . . . . . . . . . . . Power Chain Reactions . | . . . . . . . . . . . . . . . . . . . . . . Missiles Intercepted . | . . . . . . . . . . . . . . . . . . . . . . Alert | -11 -10 -10 -9 -8 -7 -7 -7 -7 -6 -6 -6 -6 -6 -6 -5 -4 -4 -4 -4 -3 -3 ------- Run | Scr Mat Min Mat Mat Fac Low Low Dat Pro Fac Ext Cet Arc Hub Fac Fac Upp Upp War Pro Res Peak Influence 427 | . 75 80 94 261 138 . . . . 177 266 105 89 97 101 51 . . . . 427 Initial 118 | . . 25 29 39 118 . . . . 94 86 85 34 30 32 21 . . . . 20 Average 92 | . 41 69 47 80 127 . . . . 148 138 88 50 50 72 31 . . . . 187 Maximum Alert Level 2 | . . . . 1 . . . . . . 1 . . . . . . . . . 2 Low Security (%) 94 | 100 100 100 100 87 100 . . . . 100 85 100 100 100 100 100 . . . . 52 Level 1 5 | . . . . 12 . . . . . . 14 . . . . . . . . . 45 Level 2 . | . . . . . . . . . . . . . . . . . . . . . 2 Level 3 . | . . . . . . . . . . . . . . . . . . . . . . Level 4 . | . . . . . . . . . . . . . . . . . . . . . . Level 5 . | . . . . . . . . . . . . . . . . . . . . . . High Security . | . . . . . . . . . . . . . . . . . . . . . . Max Security . | . . . . . . . . . . . . . . . . . . . . . . Squads Dispatched 10 | . 1 . . . 1 . . . . . 2 . . . 5 . . . . . 1 Investigation 3 | . . . . . 1 . . . . . . . . . 2 . . . . . . Extermination 1 | . . . . . . . . . . . . . . . 1 . . . . . . Reinforcement 6 | . 1 . . . . . . . . . 2 . . . 2 . . . . . 1 Assault . | . . . . . . . . . . . . . . . . . . . . . . Garrison . | . . . . . . . . . . . . . . . . . . . . . . Intercept . | . . . . . . . . . . . . . . . . . . . . . . Searches Triggered . | . . . . . . . . . . . . . . . . . . . . . . Data Miner Redirects 1 | . . . . . . . . . . . . . . . 1 . . . . . . Construction Impeded 1 | . . . . . . . . . . . . . . . . . . . . . 1 Haulers Reinforced 1 | . . . . . . . . . . . . . . . 1 . . . . . . Active Scanning Responses . | . . . . . . . . . . . . . . . . . . . . . . Cargo Convoy Interrupts . | . . . . . . . . . . . . . . . . . . . . . . Stealth | -11 -10 -10 -9 -8 -7 -7 -7 -7 -6 -6 -6 -6 -6 -6 -5 -4 -4 -4 -4 -3 -3 --------- Run | Scr Mat Min Mat Mat Fac Low Low Dat Pro Fac Ext Cet Arc Hub Fac Fac Upp Upp War Pro Res Distress Signals 5 | . 1 . . 1 . . . . . . . 1 . . 1 . . . . . 1 Communications Jammed 51 | . . . . . . . . . . . 19 . . . 26 6 . . . . . Distress Signals 51 | . . . . . . . . . . . 19 . . . 26 6 . . . . . Times Spotted 153 | . 14 5 3 16 2 3 . . . 5 18 5 4 4 13 3 4 6 12 4 32 Peak Tracking Total 12 | . 9 5 2 12 2 5 . . . 3 10 5 4 4 8 3 8 7 11 2 12 Tactical Retreats 15 | . . . . . . . . . . . 5 1 . . 1 . 1 1 . 1 5 Traps | -11 -10 -10 -9 -8 -7 -7 -7 -7 -6 -6 -6 -6 -6 -6 -5 -4 -4 -4 -4 -3 -3 ------- Run | Scr Mat Min Mat Mat Fac Low Low Dat Pro Fac Ext Cet Arc Hub Fac Fac Upp Upp War Pro Res Traps Triggered 9 | . . . . . . . . . . . 5 . . 3 1 . . . . . . Indirectly . | . . . . . . . . . . . . . . . . . . . . . . Trap Hack Attempts . | . . . . . . . . . . . . . . . . . . . . . . Triggered . | . . . . . . . . . . . . . . . . . . . . . . Disarmed . | . . . . . . . . . . . . . . . . . . . . . . Reprogrammed . | . . . . . . . . . . . . . . . . . . . . . . Reused . | . . . . . . . . . . . . . . . . . . . . . . Traps Extracted . | . . . . . . . . . . . . . . . . . . . . . . Installed . | . . . . . . . . . . . . . . . . . . . . . . Triggered 11 | . . . . . . . . . 2 . . . . . . . . 3 6 . . Machines | -11 -10 -10 -9 -8 -7 -7 -7 -7 -6 -6 -6 -6 -6 -6 -5 -4 -4 -4 -4 -3 -3 ---------- Run | Scr Mat Min Mat Mat Fac Low Low Dat Pro Fac Ext Cet Arc Hub Fac Fac Upp Upp War Pro Res Machines Disabled 3 | . . . . 1 . 1 . . . . . 1 . . . . . . . . . Max in Single Turn 1 | . . . . 1 . 1 . . . . . . . . . . . . . . . Machines Sabotaged . | . . . . . . . . . . . . . . . . . . . . . . Garrisons Compromised . | . . . . . . . . . . . . . . . . . . . . . . Overloaded Fab Kills . | . . . . . . . . . . . . . . . . . . . . . . Hacking | -11 -10 -10 -9 -8 -7 -7 -7 -7 -6 -6 -6 -6 -6 -6 -5 -4 -4 -4 -4 -3 -3 --------- Run | Scr Mat Min Mat Mat Fac Low Low Dat Pro Fac Ext Cet Arc Hub Fac Fac Upp Upp War Pro Res Machines Accessed 48 | . 2 1 1 7 3 1 . 4 . 7 3 2 1 2 8 . . . 3 . 3 Terminals 24 | . 1 1 1 5 1 . . . . 3 3 2 . 2 4 . . . . . 1 Fabricators 2 | . . . . . 1 . . . . . . . . . 1 . . . . . . Repair Stations 3 | . . . . 1 . . . . . 2 . . . . . . . . . . . Recycling Units 5 | . 1 . . 1 . . . . . 1 . . . . 1 . . . . . 1 Scanalyzers . | . . . . . . . . . . . . . . . . . . . . . . Garrison Access 5 | . . . . . 1 . . . . 1 . . . . 2 . . . . . 1 Total Hacks 197 | . 3 3 2 24 7 1 . 27 . 18 13 4 25 5 48 . . . 7 . 10 Successful 132 | . 1 2 1 11 3 1 . 27 . 9 8 3 25 4 26 . . . 7 . 4 Failed 65 | . 2 1 1 13 4 . . . . 9 5 1 . 1 22 . . . . . 6 Catastrophic 7 | . . . . 2 1 . . . . . 1 1 . 1 . . . . . . 1 Database Lockouts . | . . . . . . . . . . . . . . . . . . . . . . Manual 70 | . 2 . 2 18 4 . . . . 8 2 1 2 . 20 . . . 1 . 10 Terminals 90 | . 2 3 2 19 4 . . . . 7 13 4 . 5 30 . . . . . 1 Fabricators 6 | . . . . . 2 . . . . . . . . . 4 . . . . . . Repair Stations 7 | . . . . 2 . . . . . 5 . . . . . . . . . . . Recycling Units 12 | . 1 . . 3 . . . . . 3 . . . . 4 . . . . . 1 Scanalyzers . | . . . . . . . . . . . . . . . . . . . . . . Garrison Access 22 | . . . . . 1 . . . . 3 . . . . 10 . . . . . 8 Terminal Hacks 97 | . 1 2 . 4 2 1 . 27 . 2 8 3 25 4 11 . . . 7 . . Record 53 | . . . . 1 . . . 11 . . 3 2 25 4 7 . . . . . . Part Schematic 9 | . . . . . . . . 9 . . . . . . . . . . . . . Robot Schematic 4 | . . . . . . . . 4 . . . . . . . . . . . . . Robot Analysis 2 | . 1 . . . . . . . . . . . . . 1 . . . . . . Prototype ID Bank 9 | . . . . . . . . 3 . . 1 . . . . . . . 5 . . Open Door 4 | . . . . . . 1 . . . . . 1 . . . . . . 2 . . Level Access Points 2 | . . . . 1 . . . . . 1 . . . . . . . . . . . Branch Access Points 1 | . . . . . . . . . . 1 . . . . . . . . . . . Emergency Access Points 2 | . . . . . 1 . . . . . . . . . 1 . . . . . . Fabricator Index 1 | . . . . . . . . . . . 1 . . . . . . . . . . Alert Level 1 | . . . . . 1 . . . . . . . . . . . . . . . . Unreport Threat 2 | . . . . . . . . . . . 2 . . . . . . . . . . Locate Traps 1 | . . . . . . . . . . . . . . . 1 . . . . . . Dispatch Records 1 | . . 1 . . . . . . . . . . . . . . . . . . . Reinforcement Status 1 | . . . . . . . . . . . . . . . 1 . . . . . . Assault Status 1 | . . 1 . . . . . . . . . . . . . . . . . . . Zone Layout 3 | . . . . 2 . . . . . . 1 . . . . . . . . . . Fabricator Hacks 2 | . . . . . . . . . . . . . . . 2 . . . . . . Network Status 1 | . . . . . . . . . . . . . . . 1 . . . . . . Build 1 | . . . . . . . . . . . . . . . 1 . . . . . . Repair Station Hacks 5 | . . . . 2 . . . . . 3 . . . . . . . . . . . Scan Component 3 | . . . . 1 . . . . . 2 . . . . . . . . . . . Repair 2 | . . . . 1 . . . . . 1 . . . . . . . . . . . Recycling Unit Hacks 3 | . . . . 1 . . . . . 1 . . . . 1 . . . . . . Report Inventory 2 | . . . . 1 . . . . . . . . . . 1 . . . . . . Retrieve Components 1 | . . . . . . . . . . 1 . . . . . . . . . . . Scanalyzer . | . . . . . . . . . . . . . . . . . . . . . . Garrison Access Hacks 2 | . . . . . . . . . . . . . . . 2 . . . . . . Unlock Access 1 | . . . . . . . . . . . . . . . 1 . . . . . . Coupler Status 1 | . . . . . . . . . . . . . . . 1 . . . . . . Unauthorized Hacks 23 | . . . 1 4 1 . . . . 3 . . . . 10 . . . . . 4 Terminals 12 | . . . 1 3 1 . . . . 3 . . . . 4 . . . . . . Assimilate 1 | . . . . . . . . . . 1 . . . . . . . . . . . Botnet 9 | . . . 1 3 1 . . . . 1 . . . . 3 . . . . . . Operators 2 | . . . . . . . . . . 1 . . . . 1 . . . . . . Fabricators . | . . . . . . . . . . . . . . . . . . . . . . Repair Stations . | . . . . . . . . . . . . . . . . . . . . . . Recycling Units 2 | . . . . 1 . . . . . . . . . . . . . . . . 1 Recyclers 1 | . . . . . . . . . . . . . . . . . . . . . 1 Mask 1 | . . . . 1 . . . . . . . . . . . . . . . . . Scanalyzers . | . . . . . . . . . . . . . . . . . . . . . . Garrison Access 9 | . . . . . . . . . . . . . . . 6 . . . . . 3 Broadcast 1 | . . . . . . . . . . . . . . . 1 . . . . . . Redirect 1 | . . . . . . . . . . . . . . . . . . . . . 1 Reprogram 3 | . . . . . . . . . . . . . . . 2 . . . . . 1 Intercept 3 | . . . . . . . . . . . . . . . 2 . . . . . 1 Watchers 1 | . . . . . . . . . . . . . . . 1 . . . . . . Data Cores Recovered . | . . . . . . . . . . . . . . . . . . . . . . Used . | . . . . . . . . . . . . . . . . . . . . . . Hacking Detections 37 | . 2 . 1 7 3 . . . . 7 3 2 . 2 7 . . . . . 3 Full Trace Events 2 | . . . . . 1 . . . . . . . . . 1 . . . . . . Feedback Events . | . . . . . . . . . . . . . . . . . . . . . . Feedback Blocked . | . . . . . . . . . . . . . . . . . . . . . . Robot Schematics Acquired 4 | . . . . . . . . 4 . . . . . . . . . . . . . Robots Built 1 | . . . . . . . . . . . . . . . 1 . . . . . . Authchips . | . . . . . . . . . . . . . . . . . . . . . . Time 40 | . . . . . . . . . . . . . . . 40 . . . . . . Total Robot Build Rating 1 | . . . . . . . . . . . . . . . 1 . . . . . . Part Schematics Acquired 9 | . . . . . . . . 9 . . . . . . . . . . . . . Parts Built . | . . . . . . . . . . . . . . . . . . . . . . Authchips . | . . . . . . . . . . . . . . . . . . . . . . Time . | . . . . . . . . . . . . . . . . . . . . . . Total Part Build Rating . | . . . . . . . . . . . . . . . . . . . . . . Parts Repaired 2 | . . . . 1 . . . . . 1 . . . . . . . . . . . Time 72 | . . . . 53 . . . . . 19 . . . . . . . . . . . Parts Recycled . | . . . . . . . . . . . . . . . . . . . . . . Recycled Matter . | . . . . . . . . . . . . . . . . . . . . . . Retrieved Matter . | . . . . . . . . . . . . . . . . . . . . . . Retrieved Components 1 | . . . . . . . . . . 1 . . . . . . . . . . . Parts Scanalyzed . | . . . . . . . . . . . . . . . . . . . . . . Part Schematics Acquired . | . . . . . . . . . . . . . . . . . . . . . . Parts Damaged . | . . . . . . . . . . . . . . . . . . . . . . Bothacking | -11 -10 -10 -9 -8 -7 -7 -7 -7 -6 -6 -6 -6 -6 -6 -5 -4 -4 -4 -4 -3 -3 ------------ Run | Scr Mat Min Mat Mat Fac Low Low Dat Pro Fac Ext Cet Arc Hub Fac Fac Upp Upp War Pro Res Used RIF Installer . | . . . . . . . . . . . . . . . . . . . . . . Robots Hacked . | . . . . . . . . . . . . . . . . . . . . . . Non-combat . | . . . . . . . . . . . . . . . . . . . . . . Combat . | . . . . . . . . . . . . . . . . . . . . . . Robot Hacks Applied . | . . . . . . . . . . . . . . . . . . . . . . Relay Couplers Released . | . . . . . . . . . . . . . . . . . . . . . . Fabnet Peak Effective % . | . . . . . . . . . . . . . . . . . . . . . . Robots Rewired . | . . . . . . . . . . . . . . . . . . . . . . Allies Hacked . | . . . . . . . . . . . . . . . . . . . . . . Hacks Repelled . | . . . . . . . . . . . . . . . . . . . . . . Allies | -11 -10 -10 -9 -8 -7 -7 -7 -7 -6 -6 -6 -6 -6 -6 -5 -4 -4 -4 -4 -3 -3 -------- Run | Scr Mat Min Mat Mat Fac Low Low Dat Pro Fac Ext Cet Arc Hub Fac Fac Upp Upp War Pro Res Total Allies 12 | . . . . . . . . . 1 1 5 2 . . 3 . . . . . . Largest Group 4 | . . . . . . . . . 1 2 2 4 1 . 3 . . . . . . Highest-Rated Group 371 | . . . . . . . . . 96 122 190 371 159 . 66 . . . . . . Highest-Rated Ally 159 | . . . . . . . . . 96 96 159 159 159 . 29 . . . . . . Total Orders 3 | . . . . . . . . . . . . . . . 3 . . . . . . DROP 1 | . . . . . . . . . . . . . . . 1 . . . . . . PICKUP 2 | . . . . . . . . . . . . . . . 2 . . . . . . Ally Attacks 57 | . . . . . . . . . 13 1 23 12 . . 8 . . . . . . Total Damage 1333 | . . . . . . . . . 310 52 572 285 . . 114 . . . . . . Kills 12 | . . . . . . . . . 6 . 5 1 . . . . . . . . . Allies Corrupted . | . . . . . . . . . . . . . . . . . . . . . . Allies Melted 1 | . . . . . . . . . . . . . . . 1 . . . . . . Intel | -11 -10 -10 -9 -8 -7 -7 -7 -7 -6 -6 -6 -6 -6 -6 -5 -4 -4 -4 -4 -3 -3 ------- Run | Scr Mat Min Mat Mat Fac Low Low Dat Pro Fac Ext Cet Arc Hub Fac Fac Upp Upp War Pro Res Robot Analysis Total 2 | . 1 . . . . . . . . . . . . . 1 . . . . . . Derelict Logs Recovered 9 | . . . . . . 2 2 . 2 . . . . . . . 2 1 . . . Drone Launches . | . . . . . . . . . . . . . . . . . . . . . . Drone Recoveries . | . . . . . . . . . . . . . . . . . . . . . . Exploration | -11 -10 -10 -9 -8 -7 -7 -7 -7 -6 -6 -6 -6 -6 -6 -5 -4 -4 -4 -4 -3 -3 ------------- Run | Scr Mat Min Mat Mat Fac Low Low Dat Pro Fac Ext Cet Arc Hub Fac Fac Upp Upp War Pro Res Turns Passed 3851 | 72 225 307 228 166 90 149 94 21 200 362 342 77 46 140 462 32 154 81 304 104 195 Spaces Moved 7093 | 54 132 116 186 318 215 511 320 78 346 656 491 134 64 313 1070 79 342 207 775 290 396 Core 214 | 5 . . . . . . . . . . . . . . . . . . . . 209 Treads . | . . . . . . . . . . . . . . . . . . . . . . Legs 433 | 49 132 116 136 . . . . . . . . . . . . . . . . . . Wheels . | . . . . . . . . . . . . . . . . . . . . . . Hover . | . . . . . . . . . . . . . . . . . . . . . . Flight 6446 | . . . 50 318 215 511 320 78 346 656 491 134 64 313 1070 79 342 207 775 290 187 Fastest Speed 19 | 50 120 120 29 26 27 27 27 27 27 27 28 27 27 27 31 34 34 34 19 29 32 Average Speed 38 | 113 120 189 102 26 27 27 27 27 27 27 37 27 27 27 32 35 34 35 37 34 42 Slowest Speed 232 | 120 120 190 190 29 27 27 27 27 27 28 195 31 27 34 117 37 34 37 232 35 50 Overloaded Moves 85 | . . . . . . . . . . . . . . . . . . . 23 . 62 Propulsion Burnouts . | . . . . . . . . . . . . . . . . . . . . . . Robots Hopped 61 | . . . . 6 1 . . . . . 8 2 2 19 11 . 2 1 5 3 1 Cave-ins Triggered 1 | . . . . . . . . . . . . . . . . . . . 1 . . Exploration Rate (%) 43 | 4 29 26 22 38 9 71 64 68 57 14 74 69 76 43 28 3 54 48 91 54 19 Regions Visited 21 Branch Regions 13 Pre-discovered Areas 3 | . . . . . . . 1 1 . . . . . . . . . 1 . . . Known Exits Taken 17 | . . . . 1 1 1 1 1 1 1 1 1 1 1 1 1 1 1 1 1 . Unknown Exits Taken 4 | 1 1 1 1 . . . . . . . . . . . . . . . . . . Scrap Searched 9 | . . . . . . 3 1 . 1 . . . . . . . . 2 . 2 . Spaces Dug 1 | . . . . . . . . . . . . . . . . . . . . . 1 Terrain Destroyed 45 | . . . . 18 . . . . . . . . . . . . . . . . 27 Melee 1 | . . . . . . . . . . . . . . . . . . . . . 1 Projectile . | . . . . . . . . . . . . . . . . . . . . . . AOE 44 | . . . . 18 . . . . . . . . . . . . . . . . 26 Terrain Rammed . | . . . . . . . . . . . . . . . . . . . . . . Walls Destroyed . | . . . . . . . . . . . . . . . . . . . . . . Machines Disabled . | . . . . . . . . . . . . . . . . . . . . . . Actions | -11 -10 -10 -9 -8 -7 -7 -7 -7 -6 -6 -6 -6 -6 -6 -5 -4 -4 -4 -4 -3 -3 --------- Run | Scr Mat Min Mat Mat Fac Low Low Dat Pro Fac Ext Cet Arc Hub Fac Fac Upp Upp War Pro Res Total 7995 | 61 164 165 217 389 241 517 324 77 450 830 632 171 88 341 1171 82 377 213 781 289 415 Wait 576 | . 5 . 6 53 17 . . . 104 144 56 40 26 6 80 . 38 . 1 . . Move 6968 | 53 131 115 185 307 212 510 319 77 345 655 477 130 59 280 1051 78 337 204 765 284 394 Hop 43 | . . . . 4 1 . . . . . 5 1 2 13 8 . 2 1 3 2 1 Pick Up 44 | 2 5 1 4 7 2 2 1 . . 7 2 . . 3 7 . . . 1 . . Fast Attach 41 | 6 1 . 5 2 1 1 . . . 3 5 . . 1 3 . . 2 6 1 4 Attach 33 | . 1 1 3 4 3 1 . . . 1 1 . . 2 4 3 . 2 1 2 4 Detach 11 | . . . 1 1 . . . . . 2 . . . . . 1 . 3 1 . 2 Swap 16 | . 2 . 3 3 1 . . . . 2 . . . 3 2 . . . . . . Drop 39 | . . . 7 6 1 . 1 . . 8 1 . . 5 6 . . 1 2 . 1 Fire 54 | . 19 25 3 2 3 . . . . . . . . . . . . . . . 2 Melee 32 | . . . . . . 3 3 . 1 8 8 . 1 4 1 . . . . . 3 Ram 6 | . . . . . . . . . . . . . . . 2 . . . . . 4 Kick . | . . . . . . . . . . . . . . . . . . . . . . Crush . | . . . . . . . . . . . . . . . . . . . . . . Escape Stasis 109 | . . . . . . . . . . . 77 . . 24 7 . . . 1 . . Rewire 23 | . . 23 . . . . . . . . . . . . . . . . . . . Trap . | . . . . . . . . . . . . . . . . . . . . . . Miscellaneous . | . . . . . . . . . . . . . . . . . . . . . . Route ------- -11/Scrapyard -10/Materials -10/Mines -9/Materials -8/Materials (discovered 4 exits: *Fac x3 / [*Sto]) -7/Factory -7/Lower Caves -7/Lower Caves -7/Data Miner -6/Proximity Caves -6/Factory (discovered 8 exits: Fac x4 / Low x2 / *Ext x2) -6/Extension (discovered 2 exits: *Fac / *Cet) -6/Cetus -6/Archives -6/Hub_04(d) (discovered 2 exits: *Fac x2) -5/Factory (discovered 2 exits: *Fac / Gar) -4/Factory (discovered 2 exits: *Res / *Upp) -4/Upper Caves -4/Upper Caves -4/Warlord -3/Proximity Caves -3/Research History --------- Turn | Location | Event 2 | -11/Scrapyard | Discovered new exit (range 16) 73 | -11/Scrapyard | Entered Materials 291 | -10/Materials | Discovered new exit (range 7) 298 | -10/Materials | Entered Mines 308 | -10/Mines | Met a Derelict bent on vengeance 311 | -10/Mines | Core integrity fell below 50% 323 | -10/Mines | Build established: Mutant 345 | -10/Mines | Assembled infested the area 535 | -10/Mines | Found a hidden stash of uninstalled traps 573 | -10/Mines | Discovered new exit (range 8) 605 | -10/Mines | Entered Materials 605 | -9/Materials | Evolved 2 slots: Propulsion x1, Utility x1 832 | -9/Materials | Discovered new exit (range 4) 833 | -9/Materials | Entered another Materials area 833 | -8/Materials | Evolved 2 slots: Propulsion x1, Utility x1 910 | -8/Materials | Repaired Broken Cesium-ion Thruster 927 | -8/Materials | Identified exit to Factory 970 | -8/Materials | Discovered new exit (range 8) 999 | -8/Materials | Entered Factory 999 | -7/Factory | Evolved 2 slots: Utility x2 1018 | -7/Factory | Lost 3 parts (1p1n1u) 1083 | -7/Factory | Discovered new exit (range 4) 1083 | -7/Factory | Identified exit to Lower Caves 1089 | -7/Factory | Entered Lower Caves 1090 | -7/Lower Caves | Encountered a Warlord checkpoint 1114 | -7/Lower Caves | Build established: Scout 1182 | -7/Lower Caves | Learned Factory garrison access intel 1191 | -7/Lower Caves | Attacked by a delusional Derelict stockpiling parts 1219 | -7/Lower Caves | Learned Factory terminal intel 1233 | -7/Lower Caves | Discovered new exit (range 13) 1237 | -7/Lower Caves | Identified exit to Lower Caves 1238 | -7/Lower Caves | Entered another Lower Caves area 1261 | -7/Lower Caves | Learned Factory stockpile data 1327 | -7/Lower Caves | Discovered new exit (range 16) 1332 | -7/Lower Caves | Identified exit to Data Miner 1332 | -7/Lower Caves | Entered Data Miner 1332 | -7/Data Miner | Discovered new exit (range 7) 1334 | -7/Data Miner | Identified exit to Proximity Caves 1338 | -7/Data Miner | Met Data Miner 1343 | -7/Data Miner | Learned location of Section 7 (-2) 1343 | -7/Data Miner | Acquired the access code to Warlord's prototype stash 1347 | -7/Data Miner | Received God Mode back door access code from Data Miner 1353 | -7/Data Miner | Entered Proximity Caves 1374 | -6/Proximity Caves | Learned Factory trap positions 1390 | -6/Proximity Caves | Escorted by Enhanced Grunt 1455 | -6/Proximity Caves | Learned Factory emergency access door positions 1458 | -6/Proximity Caves | Discovered new exit (range 16) 1461 | -6/Proximity Caves | Identified exit to Factory 1553 | -6/Proximity Caves | Entered Factory 1553 | -6/Factory | Accompanied by 1 ally 1553 | -6/Factory | Evolved 2 slots: Propulsion x1, Utility x1 1554 | -6/Factory | Loaded intel: 100 trap records 1557 | -6/Factory | Loaded intel: 28 terminal locations 1558 | -6/Factory | Loaded intel: 4 garrison access locations 1739 | -6/Factory | Spotted B-75 Beast 1825 | -6/Factory | Repaired Cesium-ion Thruster 1872 | -6/Factory | Identified exit to Factory 1872 | -6/Factory | Identified exit to Lower Caves 1872 | -6/Factory | Identified exit to Extension 1915 | -6/Factory | Entered Extension 1998 | -6/Extension | Spotted B-75 Beast 2000 | -6/Extension | Spotted B-75 Beast 2015 | -6/Extension | Rescued a captive Derelict 2023 | -6/Extension | Rescued a captive Derelict 2034 | -6/Extension | Rescued a captive Derelict 2035 | -6/Extension | Lost 6 parts (1p4n1u) 2084 | -6/Extension | Rescued A7 2162 | -6/Extension | Rescued a captive Derelict 2236 | -6/Extension | Discovered exit to Factory (range 10) 2236 | -6/Extension | Discovered new exit (range 6) 2239 | -6/Extension | Identified exit to Cetus 2257 | -6/Extension | Entered Cetus 2257 | -6/Cetus | Accompanied by 2 allies (A7) 2262 | -6/Cetus | Acquired a Cetus Manufacturing Module code from A7 2266 | -6/Cetus | Spotted Cetus Guard 2266 | -6/Cetus | Spotted Cetus Guard 2267 | -6/Cetus | Spotted Cetus Guard 2268 | -6/Cetus | Spotted Cetus Guard 2276 | -6/Cetus | Started Cetus Manufacturing Module 2301 | -6/Cetus | Manufactured an Enhanced Grunt 2302 | -6/Cetus | Discovered new exit (range 16) 2309 | -6/Cetus | Identified exit to Archives 2326 | -6/Cetus | Manufactured an Enhanced Grunt 2334 | -6/Cetus | Entered Archives 2334 | -6/Archives | Accompanied by 1 ally (A7) 2370 | -6/Archives | Unable to access archive contents 2372 | -6/Archives | Unable to access archive contents 2375 | -6/Archives | Unable to access archive contents 2376 | -6/Archives | Discovered new exit (range 15) 2379 | -6/Archives | Identified exit to Hub_04(d) 2380 | -6/Archives | Entered Hub_04(d) 2453 | -6/Hub_04(d) | Discovered exit to Factory (range 10) 2454 | -6/Hub_04(d) | Spotted B-75 Beast 2480 | -6/Hub_04(d) | Discovered exit to Factory (range 14) 2520 | -6/Hub_04(d) | Entered Factory 2520 | -5/Factory | Evolved 2 slots: Utility x2 2551 | -5/Factory | Lost 3 parts (1p2n) 2604 | -5/Factory | Fabricated R-06 Scavenger? 2689 | -5/Factory | Incoming investigation squad redirected 2734 | -5/Factory | Identified exit to Garrison 2867 | -5/Factory | Build established: Hacker-Sprinter 2970 | -5/Factory | Discovered new exit (range 9) 2972 | -5/Factory | Identified exit to Factory 2982 | -5/Factory | Entered another Factory area 2982 | -4/Factory | Evolved 2 slots: Power x1, Utility x1 3004 | -4/Factory | Spotted B-86 Titan 3010 | -4/Factory | Discovered new exit (range 3) 3010 | -4/Factory | Identified exit to Research 3011 | -4/Factory | Discovered new exit (range 9) 3013 | -4/Factory | Identified exit to Upper Caves 3014 | -4/Factory | Entered Upper Caves 3139 | -4/Upper Caves | Attracted the attention of an 0b10 checkpoint 3142 | -4/Upper Caves | Learned 12 Research zone layouts 3166 | -4/Upper Caves | Discovered new exit (range 9) 3168 | -4/Upper Caves | Identified exit to Upper Caves 3168 | -4/Upper Caves | Entered another Upper Caves area 3184 | -4/Upper Caves | Encountered a Warlord checkpoint 3198 | -4/Upper Caves | Ambushed by wild Derelicts 3213 | -4/Upper Caves | Attracted the attention of an 0b10 checkpoint 3241 | -4/Upper Caves | Discovered new exit (range 17) 3249 | -4/Upper Caves | Identified exit to Warlord 3249 | -4/Upper Caves | Entered Warlord 3363 | -4/Warlord | Visited the Vortex Lab 3364 | -4/Warlord | Found Prototype Energy Gun 3364 | -4/Warlord | Identified Vortex Rail 3385 | -4/Warlord | Warlord's base attacked by MAIN.C 3435 | -4/Warlord | Met Warlord 3449 | -4/Warlord | Opened Warlord's prototype stash 3451 | -4/Warlord | Found Prototype Reactor 3451 | -4/Warlord | Identified Vortex Chain Reactor 3466 | -4/Warlord | Found Prototype Hackware 3466 | -4/Warlord | Identified System Mapper 3468 | -4/Warlord | Found Prototype Processor 3531 | -4/Warlord | Opened side exit 3549 | -4/Warlord | Discovered new exit (range 15) 3550 | -4/Warlord | Crushed by falling debris 3553 | -4/Warlord | Identified exit to Proximity Caves 3553 | -4/Warlord | Entered Proximity Caves 3553 | -3/Proximity Caves | Identified Exp. Core Analyzer 3555 | -3/Proximity Caves | Attracted the attention of an 0b10 checkpoint 3556 | -3/Proximity Caves | Spotted B-86 Titan 3603 | -3/Proximity Caves | Lost 8 parts (3n5u) 3655 | -3/Proximity Caves | Discovered exit to Research (range 5) 3657 | -3/Proximity Caves | Entered Research 3657 | -3/Research | Evolved 2 slots: Utility x2 3756 | -3/Research | Build established: Wizard-Mutant 3778 | -3/Research | Core integrity fell below 50% 3808 | -3/Research | Core integrity fell below 20% 3838 | -3/Research | Lost 9 parts (3n5u1w) 3852 | -3/Research | Destroyed by S-43 Plague with Heavy Machine Gun Last Messages --------------- Patched into local tactical coordination network. >>Trojan(Redirect) Trojan loaded successfully. Testing... Redirection algorithm responsive and awaiting execution trigger. 03792_ System Shield destroyed. 03804_ System Mapper destroyed. 03806_ S-43 Plague destroyed. 03806_ Destroyed Wheel. 03806_ K-01 Serf destroyed. 03806_ S-43 Plague destroyed. 03807_ Hvy. Rocket Launcher destroyed. 03824_ Penetrated by Slug. 03824_ Slug penetrates Wall. 03839_ Sneak attack on U-05 Engineer. 03839_ Destroyed Wheel. 03839_ Destroyed Welding Torch. 03839_ ALERT: Construction progress impeded, dispatching reinforcements to local area. 03851_ S-43 Plague destroyed. Map ----- +----------------------------------------------------+ | ????????????????????????????????????????????????# | | ????????????????????????????????????????????????# | | ????????????????????????????????????????????????# | | ????????????????????????????????????????????????# | | ????????????????????????????????????????????????## | | ?????????????????????????????????????????????????? | | ?????????????????????????????????????????????????? | | ?????????????????????????????????????????????????? | | ????????????????????????????????####?????????????? | | ???????????????????????????????? #?????????????? | | ???????????????????????????????? #?????????????? | | ???????????????????????????????? #????????###### | | ???????????????????????????????? #????????# """ | | ??????????????????????##???????? #????????# ""Y | | ?????????????????????? ???????? #????????# | | ?????????????????????? ????#########???????# | | ?????????????????????? #???# #???????# | | ?????????????????????? #???# #???????# | | ?????????????????????? #???# #???????# | | ?????????????????????? #???# #???????# | | ??????????????????????#+#????? #???????###### | | ??????????????????????# ########/################# | | ?????????????????###### us | | ?????????????????#! # ss ################# | | ?????????????????# # * s #????????????? | | ?????????????????# # @=% !#????????????? | | ?????????????????# # ###### #????????????? | | ?????????????????# # #????#####????????????? | | ?????????????????# + #?????????????????????? | | ?????????????????# ######?????????????????????? | | ?????????????????# #??????????????????????????? | | ?????????????????# ???????????????????????????? | | ?????????????????#####???????????????????????????? | | | | | | | | | | | | | | | | | | | | | | | | | | | | | | | | | | | +----------------------------------------------------+ Best States ------------- Heat Dissipation 46 Energy Generation 55 Energy Capacity 700 Matter Stores 300 Matter Capacity 300 Sight Range 22 Robot Scan Range 16 Terrain Scan Density 110 Jamming Range 14 Evasion (%) 64 Targeting Accuracy 5 Target Analysis 8 Core Analysis 8 Offensive Hacking 40 Defensive Hacking 36 Item Schematics ----------------- Combat Drone Bay | -7/Data Miner | Free Lgt. Regenerative Plating | -7/Data Miner | Free Biomechanical Wings | -7/Data Miner | Free Exp. Targeting Computer | -7/Data Miner | Free Cld. Plasma Cannon | -7/Data Miner | Free Nuclear Pulse Array | -7/Data Miner | Free Imp. Weapon Cycler | -7/Data Miner | Free Adv. Plasma Cannon | -7/Data Miner | Free Railgun | -7/Data Miner | Free Robot Schematics ------------------ B-48 Gladiator | -7/Data Miner | Free A-15 Conveyor | -7/Data Miner | Free Y-54 Guardian | -7/Data Miner | Free R-10 Processor | -7/Data Miner | Free Fabricated ------------ R-06 Scavenger | x1 | -5/Factory | Preloaded Alien Tech Used ----------------- None Achievements -------------- None Challenges ------------ None Game ------ Seed EnergyLegTriangulator Manual? 0 Play Time 01:23:12 Cumulative 51.9 hours Start 2022.10.05 @ 08:57:07 End 2022.10.05 @ 18:48:21 Sessions 3 Manual Loads 0 Difficulty Rogue Special Mode None Game No. 78 Rogue 77 Adventurer 1 Explorer 0 Win Type - Total 3 Types 3/0/0/0/0/0/0/0/0 Lore% 57 Gallery% 47 Achievement% 43 Wizard Run 0 Options --------- ASCII 0 Keyboard 0 Movement Numpad Keybinds 0 Fullscreen 1 Font 18/SmallcapsGlow Map View 76x50 Tactical HUD 1 Map Filters NONE Filters NONE Steam 1 RUN: 2319fbc7-d1de-4dd3-b4d9-24d55b3c583c